bitfinex/quotes_BTCUSD_20241229
["timestamp","ask_amount","ask_price","bid_price","bid_amount"]
[1735509826317,0.10398632,93573.0,93568.0,0.07317219]
[1735509826579,0.10398632,93573.0,93568.0,0.07517219]
[1735509826837,0.10398632,93573.0,93568.0,0.07317219]
[1735509827253,0.10498632,93573.0,93568.0,0.07517219]
[1735509828032,0.10498632,93573.0,93568.0,0.07434299]
[1735509828402,0.10398632,93573.0,93568.0,0.07434299]
[1735509828552,0.0952538,93591.0,93568.0,0.07434299]
[1735509828787,0.10398632,93586.0,93568.0,0.07434299]
[1735509828963,0.10398632,93586.0,93568.0,0.07234299]
[1735509829377,0.10398632,93586.0,93569.0,0.0453]
[1735509829598,0.10398632,93586.0,93570.0,0.0811]
[1735509829814,0.001,93573.0,93570.0,0.0811]
[1735509830255,0.10398632,93586.0,93570.0,0.0811]
[1735509830617,0.0952538,93591.0,93570.0,0.0811]
[1735509830831,0.10398632,93590.0,93570.0,0.0811]
[1735509831338,0.001,93573.0,93570.0,0.0831]
[1735509831674,0.001,93586.0,93570.0,0.0811]
[1735509831875,0.0952538,93589.0,93570.0,0.0811]
[1735509832074,0.19924012,93589.0,93570.0,0.0811]
[1735509832932,0.10398632,93589.0,93570.0,0.0811]
[1735509833431,0.02182951,93588.0,93570.0,0.0811]
[1735509836244,0.02282951,93588.0,93570.0,0.0811]
[1735509838061,0.01905493,93593.0,93570.0,0.0811]
[1735509838062,0.09142408,93595.0,93570.0,0.0811]
[1735509838259,0.10398632,93594.0,93570.0,0.0811]
[1735509838465,0.10398632,93594.0,93572.0,0.0811]
[1735509838671,0.09556192,93588.0,93572.0,0.0811]
[1735509840221,8.54e-05,93588.0,93572.0,0.0811]
[1735509841023,8.54e-05,93588.0,93572.0,0.0831]
[1735509842358,8.54e-05,93588.0,93572.0,0.0631]
[1735509843194,8.54e-05,93588.0,93572.0,0.002]
[1735509843195,2.77803457,93587.0,93572.0,0.002]
[1735509843307,2.398,93586.0,93572.0,0.002]
[1735509843512,0.10398632,93585.0,93572.0,0.002]
[1735509843730,2.146,93584.0,93568.0,0.00026417]
[1735509843931,0.10398632,93583.0,93568.0,0.00026417]
[1735509844136,0.10398632,93583.0,93572.0,0.001]
[1735509844329,0.10398632,93583.0,93568.0,0.00026417]
[1735509844730,0.19054926,93581.0,93572.0,0.001]
[1735509844925,0.19054926,93581.0,93568.0,0.00026417]
[1735509845490,0.19054926,93581.0,93569.0,0.0775]
[1735509845676,0.30268081,93584.0,93569.0,0.0775]
[1735509845677,0.23818658,93576.0,93572.0,0.002]
[1735509847215,0.19175777,93574.0,93572.0,0.002]
[1735509847393,0.19175777,93574.0,93569.0,0.0775]
[1735509848360,0.19175777,93574.0,93572.0,0.007]
[1735509848853,0.19175777,93574.0,93572.0,0.002]
[1735509849263,0.19275777,93574.0,93572.0,0.002]
[1735509849472,0.19275777,93574.0,93569.0,0.0845]
[1735509849869,0.19275777,93574.0,93572.0,0.002]
[1735509850126,0.23818658,93573.0,93572.0,0.002]
[1735509850321,0.23818658,93573.0,93569.0,0.0845]
[1735509850714,0.23818658,93573.0,93569.0,0.0795]
[1735509850919,0.23818658,93573.0,93572.0,0.007]
[1735509851345,0.23818658,93573.0,93569.0,0.0795]
[1735509851515,0.19179091,93571.0,93569.0,0.0795]
[1735509851721,0.19179091,93571.0,93569.0,0.0865]
[1735509852043,0.19179091,93571.0,93569.0,0.0775]
[1735509852257,0.00670394,93570.0,93569.0,0.0775]
[1735509852614,0.00670394,93570.0,93569.0,0.0776708]
[1735509853034,0.00670394,93570.0,93569.0,0.0806708]
[1735509853501,0.00670394,93570.0,93569.0,0.0776708]
[1735509853716,0.00670394,93570.0,93569.0,0.0884643]
[1735509853918,0.30938475,93570.0,93569.0,0.0954643]
[1735509854343,0.30938475,93570.0,93569.0,0.0884643]
[1735509854786,0.31038475,93570.0,93569.0,0.0954643]
[1735509856193,0.31038475,93570.0,93569.0,0.0876708]
[1735509856629,0.31038475,93570.0,93569.0,0.1346708]
[1735509856867,0.30368081,93570.0,93569.0,0.1346708]
[1735509857518,0.30268081,93570.0,93569.0,0.1276708]
[1735509857848,0.001,93570.0,93569.0,0.1346708]
[1735509858056,0.09589036,93571.0,93569.0,0.1411643]
[1735509858266,0.09589036,93571.0,93569.0,0.0606643]
[1735509858472,0.09589036,93571.0,93570.0,0.0757]
[1735509858858,0.00272292,93574.0,93570.0,0.0757]
[1735509859288,0.09588926,93578.0,93570.0,0.0757]
[1735509860330,8.54e-05,93588.0,93570.0,0.0757]
[1735509860531,8.54e-05,93588.0,93570.0,0.0747]
[1735509860732,8.54e-05,93588.0,93571.0,0.0131135]
[1735509861157,0.001,93578.0,93570.0,0.009]
[1735509861365,8.54e-05,93588.0,93569.0,0.0471708]
[1735509861713,0.0010854,93588.0,93570.0,0.006]
[1735509861927,8.54e-05,93588.0,93570.0,0.005]
[1735509862343,8.54e-05,93588.0,93569.0,0.0471708]
[1735509862508,0.001,93578.0,93570.0,0.009]
[1735509862708,0.001,93578.0,93572.0,0.047]
[1735509863073,0.001,93578.0,93574.0,0.047]
[1735509863279,0.001,93578.0,93575.0,0.10505476]
[1735509863485,0.001,93578.0,93577.0,0.0767]
[1735509863686,0.001,93578.0,93577.0,0.22875473]
[1735509864017,8.54e-05,93588.0,93578.0,0.1237]
[1735509864224,8.54e-05,93588.0,93580.0,0.0767]
[1735509865407,8.54e-05,93588.0,93580.0,0.0857]
[1735509865639,8.54e-05,93588.0,93580.0,0.0767]
[1735509866423,8.54e-05,93588.0,93580.0,0.0807]
[1735509868290,8.54e-05,93588.0,93580.0,0.013]
[1735509868702,8.54e-05,93588.0,93580.0,0.009]
[1735509868851,8.54e-05,93588.0,93569.0,0.0499708]
[1735509869198,8.54e-05,93588.0,93580.0,0.013]
[1735509869522,8.54e-05,93588.0,93569.0,0.0628243]
[1735509869718,8.54e-05,93588.0,93580.0,0.008]
[1735509869927,8.54e-05,93588.0,93580.0,0.011]
[1735509871033,8.54e-05,93588.0,93580.0,0.008]
[1735509871555,8.54e-05,93588.0,93569.0,0.0628243]
[1735509871758,0.0957188,93587.0,93570.0,0.11812517]
[1735509871962,0.0957188,93587.0,93580.0,0.009]
[1735509872790,8.54e-05,93588.0,93570.0,0.11812517]
[1735509873126,8.54e-05,93588.0,93571.0,0.0751]
[1735509874707,0.0957188,93587.0,93581.0,0.0751]
[1735509874933,0.0957188,93587.0,93583.0,0.0492]
[1735509875293,0.0957188,93587.0,93583.0,0.15318632]
[1735509876105,8.54e-05,93588.0,93583.0,0.15318632]
[1735509876438,8.54e-05,93588.0,93583.0,0.16218632]
[1735509876636,8.54e-05,93588.0,93583.0,0.16618632]
[1735509877137,8.54e-05,93588.0,93583.0,0.16218632]
[1735509877605,8.54e-05,93588.0,93583.0,0.013]
[1735509877751,8.54e-05,93588.0,93583.0,0.004]
[1735509878432,8.54e-05,93588.0,93583.0,0.013]
[1735509878741,8.54e-05,93588.0,93583.0,0.004]
[1735509878944,8.54e-05,93588.0,93581.0,0.0751]
[1735509879147,8.54e-05,93588.0,93583.0,0.009]
[1735509879346,8.54e-05,93588.0,93583.0,0.013]
[1735509879492,8.54e-05,93588.0,93583.0,0.004]
[1735509879835,8.54e-05,93588.0,93581.0,0.0751]
[1735509880172,8.54e-05,93588.0,93581.0,0.0791]
[1735509880690,8.54e-05,93588.0,93581.0,0.0751]
[1735509880902,8.54e-05,93588.0,93583.0,0.004]
[1735509881795,8.54e-05,93588.0,93583.0,0.013]
[1735509882613,8.54e-05,93588.0,93583.0,0.004]
[1735509882836,8.54e-05,93588.0,93573.0,0.1243]
[1735509883129,8.54e-05,93588.0,93583.0,0.007]
[1735509883338,8.54e-05,93588.0,93581.0,0.004]
[1735509883765,8.54e-05,93588.0,93573.0,0.1243]
[1735509884111,8.54e-05,93588.0,93573.0,0.1263]
[1735509884580,8.54e-05,93588.0,93574.0,0.0126735]
[1735509884782,8.54e-05,93588.0,93583.0,0.009]
[1735509885085,0.0958042,93588.0,93574.0,0.0126735]
[1735509885836,0.0957188,93585.0,93574.0,0.0126735]
[1735509886041,0.0957188,93585.0,93583.0,0.006]
[1735509886397,0.0957188,93585.0,93574.0,0.0126735]
[1735509886697,0.0957188,93585.0,93574.0,0.0216735]
[1735509886903,0.0957188,93586.0,93574.0,0.0216735]
[1735509887217,0.0957188,93586.0,93574.0,0.007]
[1735509887598,0.0957188,93586.0,93574.0,0.01]
[1735509887917,0.0957188,93585.0,93574.0,0.01]
[1735509888144,0.0957188,93585.0,93573.0,0.1243]
[1735509888322,0.0957188,93585.0,93574.0,0.003]
[1735509888502,0.0957188,93585.0,93583.0,0.008]
[1735509888756,0.0957188,93585.0,93574.0,0.003]
[1735509888904,0.0957188,93585.0,93574.0,0.0157735]
[1735509889107,0.0957188,93585.0,93574.0,0.0237735]
[1735509889430,0.0957188,93584.0,93574.0,0.003]
[1735509889633,0.0957188,93584.0,93583.0,0.008]
[1735509890053,0.01018034,93587.0,93573.0,0.1243]
[1735509890257,0.09564392,93585.0,93574.0,0.003]
[1735509890432,0.09564392,93585.0,93575.0,0.0127735]
[1735509891062,0.09564392,93585.0,93583.0,0.003]
[1735509891796,8.54e-05,93588.0,93575.0,0.0127735]
[1735509891994,8.54e-05,93588.0,93574.0,0.009]
[1735509892200,0.0818,93587.0,93574.0,0.009]
[1735509892386,0.0818,93587.0,93567.0,0.0773]
[1735509892604,0.0818,93587.0,93583.0,0.008]
[1735509892992,0.0818,93587.0,93567.0,0.0773]
[1735509893166,0.0818,93587.0,93574.0,0.007]
[1735509893403,0.0818,93587.0,93575.0,0.003]
[1735509893752,0.0818,93587.0,93583.0,0.002]
[1735509894153,0.1128,93586.0,93583.0,0.002]
[1735509894353,0.0818,93587.0,93583.0,0.002]
[1735509894981,0.0818,93587.0,93567.0,0.0773]
[1735509895301,0.0818,93587.0,93574.0,0.002]
[1735509895736,0.0818,93587.0,93567.0,0.0773]
[1735509896068,0.0818,93587.0,93583.0,0.002]
[1735509896269,0.0818,93587.0,93567.0,0.0773]
[1735509896662,0.0818,93587.0,93574.0,0.002]
[1735509896867,0.0818,93587.0,93567.0,0.0773]
[1735509897535,0.18578632,93587.0,93567.0,0.0773]
[1735509898234,0.18578632,93587.0,93583.0,0.002]
[1735509898437,0.0818,93587.0,93567.0,0.0773]
[1735509898616,0.10407172,93588.0,93567.0,0.0773]
[1735509898817,0.10407172,93588.0,93569.0,0.0021708]
[1735509899018,0.10407172,93588.0,93569.0,0.0001708]
[1735509899381,0.14349043,93585.0,93583.0,0.002]
[1735509899789,0.14349043,93585.0,93569.0,0.0001708]
[1735509899920,0.24747675,93585.0,93569.0,0.0021708]
[1735509900317,0.14349043,93585.0,93569.0,0.0021708]
[1735509900744,0.09565975,93578.0,93569.0,0.0021708]
[1735509901578,0.09565975,93578.0,93569.0,0.0001708]
[1735509902304,0.09565975,93578.0,93569.0,0.0021708]
[1735509902495,0.09565975,93578.0,93569.0,0.0081708]
[1735509902715,0.04308636,93577.0,93569.0,0.0081708]
[1735509902919,0.09565975,93578.0,93569.0,0.0081708]
[1735509903116,0.09565975,93577.0,93569.0,0.0081708]
[1735509903569,0.10398632,93576.0,93569.0,0.0061708]
[1735509903771,0.18418632,93576.0,93569.0,0.0061708]
[1735509903990,0.09565975,93573.0,93569.0,0.0081708]
[1735509904593,0.09565975,93573.0,93569.0,0.0001708]
[1735509905132,0.09565975,93573.0,93569.0,0.0051708]
[1735509905355,0.09565975,93573.0,93569.0,0.0011708]
[1735509905558,0.14349043,93572.0,93569.0,0.0001708]
[1735509905758,0.14349043,93572.0,93569.0,0.0031708]
[1735509906532,0.14349043,93570.0,93569.0,0.0001708]
[1735509907485,0.24747675,93570.0,93569.0,0.0011708]
[1735509907688,0.10398632,93570.0,93569.0,0.0011708]
[1735509907899,0.10398632,93570.0,93569.0,0.0051708]
[1735509908070,0.10398632,93570.0,93569.0,0.0011708]
[1735509908442,0.10398632,93570.0,93569.0,0.0051708]
[1735509908829,0.10398632,93570.0,93569.0,0.0061708]
[1735509910424,0.14349043,93572.0,93569.0,0.0061708]
[1735509911038,0.14349043,93571.0,93569.0,0.0061708]
[1735509911413,0.14349043,93571.0,93569.0,0.0001708]
[1735509911612,0.14349043,93571.0,93569.0,0.0011708]
[1735509912219,0.09553031,93573.0,93569.0,0.0011708]
[1735509912576,0.09553031,93573.0,93569.0,0.0001708]
[1735509912779,0.09553031,93573.0,93569.0,0.0021708]
[1735509913192,0.09553031,93572.0,93569.0,0.0001708]
[1735509913367,0.09553031,93572.0,93569.0,0.0021708]
[1735509913791,0.09553031,93573.0,93569.0,0.0021708]
[1735509914823,0.09553031,93573.0,93569.0,0.0001708]
[1735509915213,0.09553031,93572.0,93569.0,0.0001708]
[1735509915582,0.09553031,93572.0,93569.0,0.0031708]
[1735509915845,0.09553031,93572.0,93569.0,0.0001708]
[1735509916205,0.09553031,93572.0,93569.0,0.0031708]
[1735509916406,0.09553031,93572.0,93569.0,0.0011708]
[1735509916985,0.09553031,93573.0,93569.0,0.0011708]
[1735509917946,0.09553031,93573.0,93569.0,0.0041708]
[1735509918337,0.09553031,93573.0,93569.0,0.0011708]
[1735509918702,0.09553031,93573.0,93569.0,0.0041708]
[1735509922198,0.09553031,93570.0,93569.0,0.0041708]
[1735509922892,0.19951663,93570.0,93569.0,0.0041708]
[1735509923181,0.10611433,93573.0,93569.0,0.0041708]
[1735509923412,0.09551425,93572.0,93569.0,0.0011708]
[1735509924589,0.5416,93573.0,93569.0,0.0011708]
[1735509924791,0.5416,93573.0,93569.0,0.0001708]
[1735509925007,0.00670451,93572.0,93569.0,0.0011708]
[1735509925563,0.00670451,93572.0,93569.0,0.0051708]
[1735509925765,0.00670451,93571.0,93569.0,0.0001708]
[1735509926140,0.00670451,93571.0,93569.0,0.0011708]
[1735509926499,0.00670451,93570.0,93569.0,0.0001708]
[1735509926705,0.00670451,93570.0,93569.0,0.0011708]
[1735509927129,0.00670451,93570.0,93569.0,0.0001708]
[1735509928606,0.00670451,93570.0,93569.0,0.0835708]
[1735509928826,0.00670451,93570.0,93569.0,0.0815708]
[1735509929031,0.00670451,93570.0,93569.0,0.0835708]
[1735509929979,0.00659474,93570.0,93569.0,0.0835708]
[1735509930386,2.31418106,93570.0,93569.0,0.0021708]
[1735509930752,0.65218106,93570.0,93569.0,0.0021708]
[1735509931467,0.65218106,93570.0,93569.0,0.0001708]
[1735509932079,0.54819474,93570.0,93569.0,0.0001708]
[1735509932462,0.54919474,93570.0,93569.0,0.0001708]
[1735509932822,0.54819474,93570.0,93569.0,0.0001708]
[1735509933241,0.54919474,93570.0,93569.0,0.0001708]
[1735509933640,0.54819474,93570.0,93569.0,0.0001708]
[1735509934423,0.7878365,93570.0,93569.0,0.0001708]
[1735509934957,0.7879218,93570.0,93569.0,0.0001708]
[1735509935153,0.7889218,93570.0,93569.0,0.0001708]
[1735509935786,0.54828004,93570.0,93569.0,0.0001708]
[1735509935937,0.00768004,93570.0,93569.0,0.0001708]
[1735509936498,0.77168004,93570.0,93569.0,0.0001708]
[1735509936700,1.0113218,93570.0,93569.0,0.0001708]
[1735509937411,0.4793218,93570.0,93569.0,0.0001708]
[1735509937639,0.4683218,93570.0,93569.0,0.0001708]
[1735509938312,0.2473218,93570.0,93569.0,0.0001708]
[1735509939904,0.2471648,93570.0,93569.0,0.0001708]
[1735509941480,0.2471648,93570.0,93569.0,0.0802708]
[1735509942096,0.2471648,93570.0,93569.0,0.0883243]
[1735509942227,0.19866436,93570.0,93569.0,0.1372243]
[1735509942861,0.19766436,93570.0,93569.0,0.1392243]
[1735509943197,0.19766436,93570.0,93569.0,0.24121062]
[1735509943198,0.00652304,93570.0,93569.0,0.24121062]
[1735509943534,0.00752304,93570.0,93569.0,0.24921062]
[1735509945413,0.00652304,93570.0,93569.0,0.24121062]
[1735509945818,0.10316595,93570.0,93569.0,0.25121062]
[1735509946224,0.10316595,93570.0,93569.0,0.24921062]
[1735509946400,0.10316595,93570.0,93569.0,0.24115712]
[1735509946769,0.10316595,93570.0,93569.0,0.24415712]
[1735509947229,0.00752304,93570.0,93569.0,0.24415712]
[1735509948070,0.0010853,93570.0,93569.0,0.24415712]
[1735509949567,8.53e-05,93570.0,93569.0,0.23315712]
[1735509949768,8.53e-05,93570.0,93569.0,0.25649925]
[1735509949943,8.53e-05,93570.0,93569.0,0.25849925]
[1735509950142,8.53e-05,93570.0,93569.0,0.26549925]
[1735509950367,8.53e-05,93570.0,93569.0,0.25649925]
[1735509950812,0.09564291,93580.0,93570.0,0.128]
[1735509951106,0.09564291,93580.0,93576.0,0.128]
[1735509951243,0.09564291,93580.0,93578.0,0.0811]
[1735509951440,8.54e-05,93587.0,93580.0,0.0811]
[1735509951646,8.54e-05,93587.0,93582.0,0.0811]
[1735509951846,8.54e-05,93587.0,93583.0,0.10398632]
[1735509952145,8.54e-05,93587.0,93584.0,0.02319863]
[1735509952346,0.00670193,93586.0,93585.0,0.10398632]
[1735509954125,0.00670193,93586.0,93585.0,0.18908632]
[1735509955087,0.00670193,93586.0,93585.0,0.19808632]
[1735509956112,0.00670193,93586.0,93585.0,0.24498632]
[1735509956380,0.00670193,93586.0,93585.0,0.27180482]
[1735509958004,0.00678723,93586.0,93585.0,0.27180482]
[1735509959183,0.00678723,93586.0,93585.0,0.26780482]
[1735509959379,0.00678723,93586.0,93585.0,0.26280482]
[1735509959786,0.00678723,93586.0,93585.0,0.27180482]
[1735509961456,0.00678723,93586.0,93585.0,0.013]
[1735509962337,0.00678723,93586.0,93585.0,0.009]
[1735509962515,0.00678723,93586.0,93570.0,0.0818]
[1735509962732,0.00678723,93586.0,93571.0,0.10398632]
[1735509962937,0.00678723,93586.0,93585.0,0.006]
[1735509963168,8.53e-05,93586.0,93585.0,0.003]
[1735509963338,8.53e-05,93586.0,93568.0,0.00026417]
[1735509963545,8.53e-05,93586.0,93585.0,0.004]
[1735509963899,0.00678833,93586.0,93570.0,0.001]
[1735509964563,0.00670303,93585.0,93570.0,0.001]
[1735509965129,0.00670303,93584.0,93570.0,0.001]
[1735509965326,0.00670303,93584.0,93569.0,0.10415712]
[1735509965884,8.53e-05,93586.0,93569.0,0.10415712]
[1735509966180,8.53e-05,93586.0,93569.0,0.12731925]
[1735509966593,8.53e-05,93586.0,93570.0,0.002]
[1735509966891,8.53e-05,93586.0,93569.0,0.12731925]
[1735509967096,8.53e-05,93586.0,93569.0,0.12931925]
[1735509967298,0.18714066,93599.0,93569.0,0.12931925]
[1735509967445,0.09531932,93594.0,93570.0,0.01749834]
[1735509967655,1.376,93593.0,93570.0,0.01749834]
[1735509967862,0.09531932,93594.0,93570.0,0.01749834]
[1735509967863,0.09531932,93594.0,93571.0,0.10398632]
[1735509968062,0.09531932,93594.0,93573.0,0.0496]
[1735509968350,0.5416,93603.0,93575.0,0.0784]
[1735509968549,0.5416,93603.0,93577.0,0.0784]
[1735509968754,0.5416,93603.0,93578.0,0.10505472]
[1735509968957,0.5416,93619.0,93579.0,0.0784]
[1735509969147,0.5416,93619.0,93581.0,0.0784]
[1735509969362,0.5416,93619.0,93583.0,0.0784]
[1735509969595,0.5416,93619.0,93585.0,0.0784]
[1735509969831,0.001,93603.0,93587.0,0.0784]
[1735509970065,0.5416,93619.0,93588.0,0.18345464]
[1735509971059,8.53e-05,93593.0,93588.0,0.18345464]
[1735509974081,8.53e-05,93593.0,93588.0,0.18845464]
[1735509974242,8.53e-05,93593.0,93588.0,0.21863065]
[1735509974447,8.53e-05,93593.0,93588.0,0.19638632]
[1735509975482,8.53e-05,93593.0,93588.0,0.005]
[1735509975941,8.53e-05,93593.0,93588.0,0.014]
[1735509976119,8.53e-05,93593.0,93588.0,0.009]
[1735509976474,8.53e-05,93593.0,93574.0,0.0829]
[1735509976693,8.53e-05,93593.0,93575.0,0.11729688]
[1735509977053,8.53e-05,93593.0,93588.0,0.014]
[1735509977230,8.53e-05,93593.0,93575.0,0.11729688]
[1735509977642,8.53e-05,93593.0,93588.0,0.008]
[1735509978818,8.53e-05,93593.0,93576.0,0.00106854]
[1735509978994,8.53e-05,93593.0,93577.0,0.10398632]
[1735509979204,8.53e-05,93593.0,93586.0,0.10398632]
[1735509979406,8.53e-05,93593.0,93587.0,0.1879546]
[1735509979620,8.53e-05,93593.0,93592.0,0.18688632]
[1735509979826,8.53e-05,93593.0,93592.0,0.1879545]
[1735509980048,8.53e-05,93593.0,93592.0,0.22764995]
[1735509980266,8.53e-05,93593.0,93592.0,0.27538177]
[1735509982050,8.53e-05,93593.0,93592.0,0.28438177]
[1735509982227,8.54e-05,93606.0,93599.0,0.1]
[1735509982425,8.54e-05,93606.0,93605.0,0.33568632]
[1735509982670,8.54e-05,93606.0,93605.0,0.37934946]
[1735509983482,0.13820837,93638.0,93610.0,0.1]
[1735509983660,0.09541004,93646.0,93617.0,0.10398632]
[1735509984039,0.09541004,93646.0,93618.0,0.00093459]
[1735509984361,0.09541004,93646.0,93619.0,0.10398632]
[1735509984715,0.14320026,93649.0,93621.0,0.0829]
[1735509984932,8.52e-05,93649.0,93622.0,0.10398632]
[1735509985140,8.52e-05,93649.0,93622.0,0.10505421]
[1735509985342,8.52e-05,93649.0,93625.0,0.10398632]
[1735509985512,8.52e-05,93649.0,93630.0,0.10398632]
[1735509985719,8.52e-05,93649.0,93631.0,0.04936775]
[1735509985931,8.52e-05,93649.0,93632.0,0.10398632]
[1735509986132,8.52e-05,93649.0,93633.0,0.00106775]
[1735509986331,8.52e-05,93649.0,93634.0,0.10398632]
[1735509986531,8.52e-05,93649.0,93635.0,0.01533541]
[1735509986741,8.52e-05,93649.0,93636.0,0.10398632]
[1735509986950,8.52e-05,93649.0,93638.0,0.0808]
[1735509987125,8.52e-05,93649.0,93639.0,0.10505399]
[1735509987545,0.00059325,93649.0,93639.0,0.10505399]
[1735509987749,0.00059325,93649.0,93640.0,0.03011894]
[1735509988079,0.00059325,93649.0,93646.0,0.10398632]
[1735509988197,0.00059325,93649.0,93647.0,0.00106757]
[1735509988402,0.00059325,93649.0,93648.0,0.10398632]
[1735509989867,0.00059325,93649.0,93648.0,0.10505389]
[1735509990071,0.00059325,93649.0,93648.0,0.12349171]
[1735509990407,0.00059325,93649.0,93648.0,0.11449171]
[1735509990623,0.00059325,93649.0,93648.0,0.12349171]
[1735509991177,0.00059325,93649.0,93648.0,0.009]
[1735509991546,0.00059325,93649.0,93648.0,0.015]
[1735509991860,0.00059325,93649.0,93648.0,0.006]
[1735509992108,0.00059325,93649.0,93648.0,0.015]
[1735509992529,0.00059325,93649.0,93648.0,0.135]
[1735509992731,0.00059325,93649.0,93648.0,0.26148632]
[1735509993106,0.00059325,93649.0,93648.0,0.25248632]
[1735509993443,0.00059325,93649.0,93648.0,0.25348632]
[1735509993648,0.00059325,93649.0,93648.0,0.24648632]
[1735509993850,0.00059325,93649.0,93648.0,0.25048632]
[1735509994903,0.00059325,93649.0,93648.0,0.24648632]
[1735509995119,0.00059325,93649.0,93648.0,0.25548632]
[1735509995313,0.00059325,93649.0,93648.0,0.25048632]
[1735509995649,0.00059325,93649.0,93648.0,0.25948632]
[1735509996967,0.00059325,93649.0,93648.0,0.25548632]
[1735509997325,0.00059325,93649.0,93648.0,0.26048632]
[1735509997731,0.00059325,93649.0,93648.0,0.24698632]
[1735509999953,0.00059325,93649.0,93648.0,0.014]
[1735510001026,0.00059325,93649.0,93648.0,0.009]
[1735510001218,0.00059325,93649.0,93626.0,0.0811679]
[1735510001399,0.00059325,93649.0,93648.0,0.005]
[1735510001759,0.00059325,93649.0,93648.0,0.11798632]
[1735510001909,0.00059325,93649.0,93648.0,0.10398632]
[1735510002132,0.00059325,93649.0,93648.0,0.11438495]
[1735510002295,0.00059325,93649.0,93648.0,0.12338495]
[1735510002675,0.00059325,93649.0,93648.0,0.19448495]
[1735510002807,0.00059325,93649.0,93648.0,0.19555254]
[1735510003014,0.00059325,93649.0,93648.0,0.20455254]
[1735510003218,0.00059325,93649.0,93648.0,0.20755254]
[1735510003448,0.00059325,93649.0,93648.0,0.20648495]
[1735510003827,0.00059325,93649.0,93648.0,0.20348495]
[1735510004170,0.00059325,93649.0,93648.0,0.20955251]
[1735510004308,0.00059325,93649.0,93648.0,0.20848495]
[1735510004515,0.00059325,93649.0,93648.0,0.20348495]
[1735510004723,0.00059325,93649.0,93648.0,0.20455251]
[1735510004965,0.00059325,93649.0,93648.0,0.20255251]
[1735510005367,0.00059325,93649.0,93648.0,0.21155251]
[1735510005583,0.00059325,93649.0,93648.0,0.19108632]
[1735510005951,0.00059325,93649.0,93648.0,0.20008632]
[1735510006147,0.00059325,93649.0,93648.0,0.19108632]
[1735510006350,0.00059325,93649.0,93648.0,0.18408632]
[1735510006551,0.00059325,93649.0,93648.0,0.19415396]
[1735510006754,0.00059325,93649.0,93648.0,0.23745936]
[1735510006976,0.00059325,93649.0,93648.0,0.23639172]
[1735510007202,0.00059325,93649.0,93648.0,0.22839172]
[1735510007716,0.00059325,93649.0,93648.0,0.23539172]
[1735510008013,0.00059325,93649.0,93648.0,0.22839172]
[1735510008218,0.00059325,93649.0,93648.0,0.24539172]
[1735510008567,0.00059325,93649.0,93648.0,0.23639172]
[1735510008787,0.00059325,93649.0,93648.0,0.24539172]
[1735510009595,0.00059325,93649.0,93648.0,0.23739172]
[1735510009809,0.00059325,93649.0,93648.0,0.24539172]
[1735510010668,0.00059325,93649.0,93648.0,0.23739172]
[1735510010873,0.00059325,93649.0,93648.0,0.24539172]
[1735510011552,0.00059325,93649.0,93648.0,0.23639172]
[1735510011962,0.00059325,93649.0,93648.0,0.24539172]
[1735510014582,0.00728971,93649.0,93648.0,0.24539172]
[1735510014796,0.00728971,93649.0,93648.0,0.23639172]
[1735510015075,0.00728971,93649.0,93648.0,0.20108632]
[1735510015459,0.00728971,93649.0,93648.0,0.19315387]
[1735510015658,0.00728971,93649.0,93648.0,0.20215387]
[1735510015866,0.00728971,93649.0,93648.0,0.20108632]
[1735510016082,0.00728971,93649.0,93648.0,0.22330171]
[1735510016791,0.00059325,93649.0,93648.0,0.23130171]
[1735510017296,0.00059325,93649.0,93648.0,0.22330171]
[1735510017504,0.00059325,93649.0,93648.0,0.23130171]
[1735510019568,0.00059325,93649.0,93648.0,0.12098632]
[1735510022764,0.01674422,93686.0,93648.0,0.12098632]
[1735510022933,1.073,93685.0,93649.0,0.10398632]
[1735510023128,1.004,93685.0,93649.0,0.10398632]
[1735510023446,0.944,93685.0,93649.0,0.10398632]
[1735510023643,0.01689664,93686.0,93650.0,0.01209863]
[1735510023920,0.632,93685.0,93651.0,0.10398632]
[1735510024092,0.01689664,93686.0,93651.0,0.10398632]
[1735510024330,0.455,93685.0,93651.0,0.10398632]
[1735510024949,0.145,93684.0,93651.0,0.10398632]
[1735510025155,1.60409055,93685.0,93652.0,0.0124085]
[1735510025329,1.421,93684.0,93653.0,0.10398632]
[1735510025736,1.403,93684.0,93653.0,0.10398632]
[1735510025974,1.453,93684.0,93653.0,0.10398632]
[1735510026279,0.19659391,93683.0,93653.0,0.10398632]
[1735510026623,0.20329118,93683.0,93653.0,0.10398632]
[1735510027256,0.00669727,93682.0,93653.0,0.10498632]
[1735510027468,0.11068359,93682.0,93653.0,0.10498632]
[1735510027846,0.11068359,93682.0,93653.0,0.10398632]
[1735510028043,0.10398632,93682.0,93654.0,0.01109863]
[1735510028247,0.36184459,93680.0,93640.0,0.081]
[1735510028457,2.64398632,93679.0,93653.0,0.006]
[1735510028821,0.01674569,93671.0,93641.0,0.10398632]
[1735510028978,0.01674569,93671.0,93653.0,0.004]
[1735510029160,0.0066976,93670.0,93653.0,0.004]
[1735510029357,0.0066976,93670.0,93641.0,0.10398632]
[1735510030015,0.0066976,93669.0,93642.0,0.0815]
[1735510030225,0.0066976,93669.0,93643.0,0.12255201]
[1735510030573,0.0066976,93668.0,93643.0,0.12255201]
[1735510031130,0.0066976,93668.0,93648.0,0.0001704]
[1735510031345,0.0066976,93667.0,93653.0,0.004]
[1735510031462,0.0066976,93667.0,93654.0,0.10398632]
[1735510031888,0.0066976,93666.0,93654.0,0.10398632]
[1735510032138,0.0066976,93666.0,93655.0,0.0815]
[1735510032313,0.0066976,93666.0,93656.0,0.12253495]
[1735510032523,0.09517126,93676.0,93656.0,0.10398632]
[1735510032908,0.09517126,93674.0,93656.0,0.10398632]
[1735510033842,0.00669687,93673.0,93656.0,0.10598632]
[1735510034337,0.00669687,93673.0,93656.0,0.10398632]
[1735510034545,0.00669687,93672.0,93657.0,0.02424863]
[1735510034752,0.00669687,93672.0,93658.0,0.10398632]
[1735510035159,0.00669687,93671.0,93658.0,0.10398632]
[1735510035567,0.00669687,93670.0,93658.0,0.10398632]
[1735510036128,0.00669687,93670.0,93658.0,0.11298632]
[1735510036338,0.00669687,93669.0,93658.0,0.10398632]
[1735510037122,0.00669687,93668.0,93658.0,0.10398632]
[1735510037465,0.00669687,93667.0,93658.0,0.10398632]
[1735510038144,0.09517126,93671.0,93658.0,0.10398632]
[1735510038145,0.00669687,93666.0,93658.0,0.10398632]
[1735510038545,0.00669687,93665.0,93658.0,0.10398632]
[1735510038769,0.00669687,93665.0,93658.0,0.11298632]
[1735510038965,0.00669687,93665.0,93659.0,0.10254863]
[1735510039167,0.00669687,93664.0,93660.0,0.10398632]
[1735510039999,0.00669687,93663.0,93660.0,0.10398632]